Cogmind - Beta 11 @@@ ROGUE MODE // 2022.04.11 @ 15:25:57 Player: Decinym Result: Destroyed by S-10 Pest with Light Assault Rifle Performance ------------- Evolutions (0) 0 Regions Visited (4) 800 Robots Destroyed (5) 25 Value Destroyed (182) 182 Prototype IDs (23) 460 Alien Tech Used (0) 0 Bonus (300) 300 TOTAL SCORE: 1767 Bonus ------- Aligned with FarCom 300 Cogmind --------- Core Integrity 0/250 Matter 253/300 Energy 250/250 System Corruption 0% Temperature Cool (0) Movement Rolling (100) Location -9/Mines Parts ------- > --- POWER (1) -------- Ion Engine > --- PROPULSION (2) --- Compact Wheel Compact Wheel > --- UTILITY (2) ------ Improved Heat Sink Large Storage Unit > --- WEAPON (2) ------- (None) > --- INVENTORY (15) --- Light Nuclear Core Light Treads Light Treads Small Storage Unit Large Storage Unit Lightpack 2.0 Peak State ------------ > --- POWER ------------ Ion Engine > --- PROPULSION ------- Aluminum Leg Aluminum Leg > --- UTILITY ---------- Improved Heat Sink Small Storage Unit > --- WEAPON ----------- Small Laser Particle Gun > --- INVENTORY -------- Ion Engine Light Nuclear Core Light Treads Light Treads Compact Wheel Compact Wheel Light Assault Rifle Grenade Launcher [Rating: 11] Favorites ----------- Power Ion Engine Engine Ion Engine Propulsion Light Treads Treads Light Treads Leg Aluminum Leg Wheel Compact Wheel Utility Small Storage Unit Device Improved Heat Sink Storage Small Storage Unit Weapon Small Laser Energy Gun Small Laser Ballistic Gun Light Assault Rifle Launcher Grenade Launcher Build | -11 -10 -10 -10 -9 ------- Run | Scr Mat Min Exi Min Slots Evolved . | . . . . . Power . | . . . . . Propulsion . | . . . . . Utility . | . . . . . Weapon . | . . . . . Parts Attached 13 | . 1 9 1 2 Power 2 | . . 2 . . Engine 2 | . . 2 . . Core . | . . . . . Reactor . | . . . . . Propulsion 5 | . . 3 . 2 Treads 2 | . . 2 . . Leg 1 | . . 1 . . Wheel 2 | . . . . 2 Hover . | . . . . . Flight . | . . . . . Utility 2 | . . 1 1 . Device 1 | . . 1 . . Storage 1 | . . . 1 . Processor . | . . . . . Hackware . | . . . . . Protection . | . . . . . Artifact . | . . . . . Weapon 4 | . 1 3 . . Energy Gun 1 | . . 1 . . Energy Cannon . | . . . . . Ballistic Gun 2 | . 1 1 . . Ballistic Cannon . | . . . . . Launcher 1 | . . 1 . . Special Weapon . | . . . . . Impact Weapon . | . . . . . Slashing Weapon . | . . . . . Piercing Weapon . | . . . . . Special Melee Weapon . | . . . . . Unidentified Prototypes . | . . . . . Parts Lost 7 | . . 7 . . Power 1 | . . 1 . . Propulsion 2 | . . 2 . . Utility . | . . . . . Weapon 4 | . . 4 . . Highest Loss Streak 7 | . . 7 . . To Critical Strikes . | . . . . . Average Slot Usage (%) 77 | . 85 83 71 71 Engine 13 | . 14 13 14 14 Treads 15 | . . 5 28 17 Leg 11 | . 28 21 . . Wheel 1 | . . . . 10 Device 9 | . . 4 14 14 Storage 14 | . 14 14 14 14 Energy Gun 6 | . 21 12 . . Ballistic Gun 4 | . 6 10 . . Naked Turns . | . . . . . Heaviest Build 26 | 11 11 15 26 26 Greatest Support 40 | 20 20 40 40 40 Greatest Overweight (x) . | . . . . . Average Overweight (x) . | . . . . . Largest Inventory Capacity 15 | . 8 8 15 15 Average Capacity 9 | . 8 8 9 15 Most Carried 8 | . 7 8 8 8 Average Carried 6 | . 6 6 5 8 Final Capacity 15 | 8 8 8 15 15 Final Carried 8 | 6 7 3 8 8 Class Distribution -------------------- 96% | Mutant 3% | Scavenger-Mutant Dominant Class ---------------- Mutant | -10/Materials Mutant | -10/Mines Mutant | -10/Exiles Mutant | -9/Mines Resources | -11 -10 -10 -10 -9 ----------- Run | Scr Mat Min Exi Min Matter Collected 300 | 200 . 78 . 22 Remotely . | . . . . . Salvage Created 189 | . 15 174 . . Parts 12 | . 3 9 . . Haulers Intercepted . | . . . . . Recyclers Shooed . | . . . . . Parts Field Recycled . | . . . . . Retrieved Matter . | . . . . . Parts Self-Destructed . | . . . . . Prevented . | . . . . . Kills | -11 -10 -10 -10 -9 ------- Run | Scr Mat Min Exi Min Combat Hostiles Destroyed 7 | . 1 6 . . Guns 5 | . 1 4 . . AOE 2 | . . 2 . . Classes Destroyed 3 | . 1 2 . . Swarmer 1 | . 1 . . . Grunt 4 | . . 4 . . Assembled 2 | . . 2 . . Best Kill Streak 2 | . 1 2 . . Combat Bots Only 2 | . 1 2 . . Max Kills in Single Turn 1 | . 1 1 . . Gunslinging . | . . . . . Exploded 1 | . . 1 . . Melee . | . . . . . Uniques/NPCs Destroyed . | . . . . . Combat | -11 -10 -10 -10 -9 -------- Run | Scr Mat Min Exi Min Damage Taken 1308 | . 39 1048 . 221 Core 252 | . 23 192 . 37 Absorbed by Shields . | . . . . . Core Remaining (%) 100 | 100 . . . . Volleys Fired 37 | . 6 31 . . Largest 2 | . 2 2 . . Hottest 105 | . 80 105 . . Shots Fired 67 | . 12 55 . . Gun 65 | . 12 53 . . Cannon . | . . . . . Launcher 2 | . . 2 . . Special . | . . . . . Kinetic 27 | . . 27 . . Thermal 32 | . 6 26 . . Explosive 2 | . . 2 . . Electromagnetic 6 | . 6 . . . Robot Hit Streak 7 | . 2 7 . . Robot Miss Streak 3 | . 3 3 . . Penetration Max . | . . . . . Secondary Targets 2 | . . 2 . . Max Gunslinging Chain 1 | . . 1 . . Shots Hit Robots 40 | . 4 36 . . Core Hits 19 | . 1 18 . . Critical Kills . | . . . . . Critical Parts Destroyed . | . . . . . Critical Strikes . | . . . . . Melee Attacks . | . . . . . Impact . | . . . . . Slashing . | . . . . . Piercing . | . . . . . Sneak Attacks . | . . . . . Combat Hostiles . | . . . . . Follow-up Attacks . | . . . . . Damage Inflicted 579 | . 44 535 . . Guns 411 | . 44 367 . . Cannons . | . . . . . Explosions 168 | . . 168 . . Melee . | . . . . . Ramming . | . . . . . Kinetic 145 | . . 145 . . Thermal 244 | . 22 222 . . Explosive 168 | . . 168 . . Electromagnetic 22 | . 22 . . . Impact . | . . . . . Slashing . | . . . . . Piercing . | . . . . . Highest Corruption . | . . . . . Average Corruption . | . . . . . Corruption Purged . | . . . . . Corruption Blocked . | . . . . . Overload Shots . | . . . . . Overflow Damage 14 | . . 14 . . Projectiles . | . . . . . Explosions 14 | . . 14 . . Melee . | . . . . . Knockbacks . | . . . . . Impact . | . . . . . Kinetic . | . . . . . Secondary . | . . . . . Self-Inflicted Damage 40 | . . 40 . . Shots 1 | . . 1 . . Rammed . | . . . . . Targets Rammed . | . . . . . Kicked . | . . . . . Crushed . | . . . . . Highest Temperature 178 | . 72 178 . . Average Temperature 87 | . 39 100 . . Received Heat Transfer 312 | . . 240 . 72 Siege Activations . | . . . . . Robots Corrupted . | . . . . . Combat Hostiles . | . . . . . Parts Fried . | . . . . . Impact Corruptions . | . . . . . Robots Melted . | . . . . . Combat Hostiles . | . . . . . Parts Melted . | . . . . . Heat Transferred 549 | . 50 499 . . Parts Sabotaged . | . . . . . Parts Stolen . | . . . . . Parts Stripped . | . . . . . Power Chain Reactions . | . . . . . Missiles Intercepted . | . . . . . Alert | -11 -10 -10 -10 -9 ------- Run | Scr Mat Min Exi Min Peak Influence 78 | . 73 78 . 75 Initial 28 | . . 28 . . Average 46 | . 40 53 . 30 Maximum Alert Level . | . . . . . Low Security (%) 100 | . 100 100 . 100 Level 1 . | . . . . . Level 2 . | . . . . . Level 3 . | . . . . . Level 4 . | . . . . . Level 5 . | . . . . . High Security . | . . . . . Max Security . | . . . . . Squads Dispatched 1 | . 1 . . . Investigation . | . . . . . Extermination . | . . . . . Reinforcement 1 | . 1 . . . Assault . | . . . . . Garrison . | . . . . . Intercept . | . . . . . Searches Triggered . | . . . . . Construction Impeded . | . . . . . Haulers Reinforced . | . . . . . Active Scanning Responses . | . . . . . Cargo Convoy Interrupts . | . . . . . Stealth | -11 -10 -10 -10 -9 --------- Run | Scr Mat Min Exi Min Distress Signals . | . . . . . Communications Jammed . | . . . . . Distress Signals . | . . . . . Times Spotted 30 | . 5 18 . 7 Peak Tracking Total 7 | . 3 7 . 4 Tactical Retreats 4 | . 1 1 . 2 Traps | -11 -10 -10 -10 -9 ------- Run | Scr Mat Min Exi Min Traps Triggered . | . . . . . Indirectly . | . . . . . Trap Hack Attempts . | . . . . . Triggered . | . . . . . Disarmed . | . . . . . Reprogrammed . | . . . . . Reused . | . . . . . Traps Extracted . | . . . . . Installed . | . . . . . Triggered . | . . . . . Machines | -11 -10 -10 -10 -9 ---------- Run | Scr Mat Min Exi Min Machines Disabled 1 | . 1 . . . Max in Single Turn 1 | . 1 . . . Machines Sabotaged . | . . . . . Garrisons Compromised . | . . . . . Overloaded Fab Kills . | . . . . . Hacking | -11 -10 -10 -10 -9 --------- Run | Scr Mat Min Exi Min Machines Accessed 3 | . 1 . 2 . Terminals 1 | . 1 . . . Fabricators . | . . . . . Repair Stations . | . . . . . Recycling Units . | . . . . . Scanalyzers . | . . . . . Garrison Access . | . . . . . Total Hacks 8 | . 2 . 6 . Successful 7 | . 1 . 6 . Failed 1 | . 1 . . . Catastrophic . | . . . . . Database Lockouts . | . . . . . Manual 3 | . 2 . 1 . Terminals 2 | . 2 . . . Fabricators . | . . . . . Repair Stations . | . . . . . Recycling Units . | . . . . . Scanalyzers . | . . . . . Garrison Access . | . . . . . Terminal Hacks 7 | . 1 . 6 . Record 5 | . . . 5 . Branch Access Points 1 | . 1 . . . EX-Prototype ID Bank 1 | . . . 1 . Fabricator Hacks . | . . . . . Repair Station Hacks . | . . . . . Recycling Unit Hacks . | . . . . . Scanalyzer . | . . . . . Garrison Access Hacks . | . . . . . Unauthorized Hacks . | . . . . . Terminals . | . . . . . Fabricators . | . . . . . Repair Stations . | . . . . . Recycling Units . | . . . . . Scanalyzers . | . . . . . Garrison Access . | . . . . . Data Cores Recovered . | . . . . . Used . | . . . . . Hacking Detections . | . . . . . Full Trace Events . | . . . . . Feedback Events . | . . . . . Feedback Blocked . | . . . . . Robot Schematics Acquired . | . . . . . Robots Built . | . . . . . Authchips . | . . . . . Time . | . . . . . Total Robot Build Rating . | . . . . . Part Schematics Acquired . | . . . . . Parts Built . | . . . . . Authchips . | . . . . . Time . | . . . . . Total Part Build Rating . | . . . . . Parts Repaired . | . . . . . Time . | . . . . . Parts Recycled . | . . . . . Recycled Matter . | . . . . . Retrieved Matter . | . . . . . Retrieved Components . | . . . . . Parts Scanalyzed . | . . . . . Part Schematics Acquired . | . . . . . Parts Damaged . | . . . . . Bothacking | -11 -10 -10 -10 -9 ------------ Run | Scr Mat Min Exi Min Used RIF Installer . | . . . . . Robots Hacked . | . . . . . Non-combat . | . . . . . Combat . | . . . . . Robot Hacks Applied . | . . . . . Relay Couplers Released . | . . . . . Fabnet Peak Effective % . | . . . . . Robots Rewired . | . . . . . Allies Hacked . | . . . . . Hacks Repelled . | . . . . . Allies | -11 -10 -10 -10 -9 -------- Run | Scr Mat Min Exi Min Total Allies 3 | . . 3 . . Largest Group 3 | . . 3 . . Highest-Rated Group 40 | . . 40 . . Highest-Rated Ally 16 | . . 16 . . Total Orders . | . . . . . Ally Attacks 28 | . . 28 . . Total Damage 296 | . . 296 . . Kills 5 | . . 5 . . Allies Corrupted . | . . . . . Allies Melted . | . . . . . Intel | -11 -10 -10 -10 -9 ------- Run | Scr Mat Min Exi Min Robot Analysis Total . | . . . . . Derelict Logs Recovered 2 | . . 1 . 1 Drone Launches . | . . . . . Drone Recoveries . | . . . . . Exploration | -11 -10 -10 -10 -9 ------------- Run | Scr Mat Min Exi Min Turns Passed 1541 | . 117 648 562 214 Spaces Moved 1018 | 1 81 425 350 161 Core . | . . . . . Treads 495 | . . 64 350 81 Legs 443 | 1 81 361 . . Wheels 80 | . . . . 80 Hover . | . . . . . Flight . | . . . . . Fastest Speed 100 | 120 120 120 160 100 Average Speed 137 | 120 120 126 160 130 Slowest Speed 160 | 120 120 160 160 160 Overloaded Moves . | . . . . . Propulsion Burnouts . | . . . . . Robots Hopped . | . . . . . Cave-ins Triggered . | . . . . . Exploration Rate (%) 42 | 2 20 64 71 54 Regions Visited 4 Branch Regions 3 Pre-discovered Areas 1 | . . . 1 . Known Exits Taken 1 | . 1 . . . Unknown Exits Taken 3 | 1 . 1 1 . Scrap Searched 1 | . . . . 1 Spaces Dug . | . . . . . Terrain Destroyed 9 | . . 9 . . Melee . | . . . . . Projectile . | . . . . . AOE 9 | . . 9 . . Terrain Rammed . | . . . . . Walls Destroyed . | . . . . . Machines Disabled . | . . . . . Actions | -11 -10 -10 -10 -9 --------- Run | Scr Mat Min Exi Min Total 1093 | . 89 488 352 164 Wait 21 | . . 20 . 1 Move 1014 | . 80 424 349 161 Hop . | . . . . . Pick Up 4 | . 1 1 2 . Fast Attach 3 | . 1 2 . . Attach 5 | . . 5 . . Detach . | . . . . . Swap 5 | . . 2 1 2 Drop 4 | . 1 3 . . Fire 37 | . 6 31 . . Melee . | . . . . . Ram . | . . . . . Kick . | . . . . . Crush . | . . . . . Escape Stasis . | . . . . . Rewire . | . . . . . Trap . | . . . . . Miscellaneous . | . . . . . Route ------- -11/Scrapyard -10/Materials (discovered 2 exits: *Min x2) -10/Mines (discovered 2 exits: [*Mat] / *Exi) -10/Exiles -9/Mines (discovered 1 exit: [*Mat]) History --------- Turn | Location | Event 1 | -11/Scrapyard | Discovered new exit (range 0) 1 | -11/Scrapyard | Entered Materials 94 | -10/Materials | Identified exit to Mines 118 | -10/Materials | Entered Mines 126 | -10/Mines | Met a Derelict bent on vengeance 309 | -10/Mines | Build established: Mutant 370 | -10/Mines | Learned Materials stockpile data 469 | -10/Mines | Discovered new exit (range 9) 596 | -10/Mines | Assembled infested the area 621 | -10/Mines | Core integrity fell below 50% 623 | -10/Mines | Core integrity fell below 20% 678 | -10/Mines | Lost 7 parts (1p2n4w) 687 | -10/Mines | Assisted by bots powering up and referring to "LRC-V3" 760 | -10/Mines | Deemed a non-threat by the Exiles lab entrance 760 | -10/Mines | Discovered new exit (range 5) 766 | -10/Mines | Entered Exiles 805 | -10/Exiles | Met 8R-AWN 830 | -10/Exiles | Met EX-HEX 883 | -10/Exiles | Met EX-BIN 907 | -10/Exiles | Aligned with FarCom system 909 | -10/Exiles | Given EX-Vault access code 949 | -10/Exiles | Opened EX-Vault 958 | -10/Exiles | Found Lightpack 2.0 991 | -10/Exiles | Warned to stay clear of 0b10 Research branches 1035 | -10/Exiles | Met EX-DEC 1052 | -10/Exiles | Learned location of Zion (-7) 1309 | -10/Exiles | Discovered new exit (range 10) 1328 | -10/Exiles | Left Exiles lab with Lightpack 2.0 1328 | -10/Exiles | Entered Mines 1384 | -9/Mines | Learned Materials stockpile data 1540 | -9/Mines | Discovered new exit (range 11) 1542 | -9/Mines | Destroyed by S-10 Pest with Light Assault Rifle Last Messages --------------- only a matter of time before they find us. We might need to prioritize getting out of here and finding a better environment less hostile to science. >>Record "MSG004964-01" Who left my Assembled plushie in the Analyzer again?! I'm not erasing this message until I get an answer. --BIN 01211_ Acquired Lrg. Storage Unit. 01309_ EXIT=FOUND LOCATION=UNKNOWN GOAL=ESCAPE 01328_ Receiving FarCom transmissions... 01354_ Searching scrap... 01354_ Found Imp. Ion Engine. 01354_ Found Hpw. Tractor Beam. 01354_ Found 22 Matter. 01355_ Acquired 22 matter. 01384_ Acquired derelict log, extracted data. Data stored: Materials stockpile data. 01523_ K-01 Serf collects debris. 01540_ EXIT=FOUND Map ----- +----------------------------------------------------+ | ##### ##???????? ????????????????? | | ????####????????? ????????????????? | | ????????????????? "????????????????? | | ????????????????? "????????????????? | | ????????????????" "????????????????? | | ???????????????? ?????????????????? | | ???????????????? ?????????????????? | | ???????????????? #?????????????????? | | ???????????????? #?????????????????? | | ################ #???????????###???? | | #????????### ##??? | | ########### ### ##???????## #??? | | ??????????# #?# ########## ##?? | | ??????????# #?# ##? | | ??????????# #?########### #? | | ??????????# #???????????## #? | | ??????????# #?????????##### ##? | | ??????????# #?????????# ### ####?? | | ??????????# ?????????# ## #????? | | ???????????##?????????# ##s #????? | | ???????????????????????# ## #????? | | ????????????????????????# #ss#????? | | ????????????????????????# #????? | | ???????????????????????## ##???? | | ?????????????????# ##### #???? | | ?????????????????# @ ##???? | | ?????????????????###### ##????? | | ??????????????????????# ##?????? | | ??????????????????????# ###??????? | | ??????????????????????# ##????????? | | ??????????????????????# ??????????? | | ??????????????????????# ??????????? | | ??????????????????????# ??????????? | | ?????????????????????? ??????????? | | ??????????????????????